[Event "Late-Titled-Tuesday-Blitz-January-30-2024"]
[Site "Chess.com"]
[Date "2024.01.30"]
[Round "6"]
[White "OPQRC"]
[Black "The_Straightforward_Rook"]
[Result "1-0"]
[WhiteElo "2544"]
[BlackElo "2417"]
[TimeControl "180+1"]
[EndTime "15:07:11 PST"]
[Termination "OPQRC won by checkmate"]

1. e4 {[%clk 0:03:00.9]} 1... c6 {[%clk 0:02:55.7]} 2. d4 {[%clk 0:02:56.7]}
2... d5 {[%clk 0:02:56.6]} 3. exd5 {[%clk 0:02:57.6]} 3... cxd5 {[%clk
0:02:57.5]} 4. Bf4 {[%clk 0:02:57.5]} 4... Nf6 {[%clk 0:02:54]} 5. c3 {[%clk
0:02:57.5]} 5... Bg4 {[%clk 0:02:51.9]} 6. Qb3 {[%clk 0:02:56.7]} 6... Qd7
{[%clk 0:02:49.4]} 7. Nd2 {[%clk 0:02:56.1]} 7... Nc6 {[%clk 0:02:40.1]} 8. Ngf3
{[%clk 0:02:51.9]} 8... a6 {[%clk 0:02:39.5]} 9. h3 {[%clk 0:02:45.4]} 9... Bxf3
{[%clk 0:02:35.5]} 10. Nxf3 {[%clk 0:02:45.2]} 10... e6 {[%clk 0:02:35.4]} 11.
Bd3 {[%clk 0:02:43.3]} 11... Be7 {[%clk 0:02:34.5]} 12. O-O {[%clk 0:02:42.8]}
12... O-O {[%clk 0:02:34.8]} 13. Rfe1 {[%clk 0:02:41.5]} 13... b5 {[%clk
0:02:32.6]} 14. Qd1 {[%clk 0:02:34]} 14... b4 {[%clk 0:02:15.5]} 15. Re3 {[%clk
0:02:30.2]} 15... bxc3 {[%clk 0:02:14.3]} 16. bxc3 {[%clk 0:02:31.1]} 16... Rfc8
{[%clk 0:02:12.5]} 17. Rb1 {[%clk 0:02:23.1]} 17... Bd6 {[%clk 0:02:05.7]} 18.
Bg5 {[%clk 0:02:10.6]} 18... Na5 {[%clk 0:01:50.2]} 19. Ne5 {[%clk 0:01:52.7]}
19... Qc7 {[%clk 0:01:39.5]} 20. Bxf6 {[%clk 0:01:01.1]} 20... gxf6 {[%clk
0:01:35.9]} 21. Qh5 {[%clk 0:01:01]} 21... fxe5 {[%clk 0:01:31.3]} 22. dxe5
{[%clk 0:00:57.4]} 22... Kf8 {[%clk 0:01:18.3]} 23. exd6 {[%clk 0:00:29.9]}
23... Qxd6 {[%clk 0:01:19.2]} 24. Rb7 {[%clk 0:00:25.2]} 24... Rc7 {[%clk
0:01:15.1]} 25. Rxc7 {[%clk 0:00:25.2]} 25... Qxc7 {[%clk 0:01:16]} 26. Qxh7
{[%clk 0:00:25.3]} 26... Rb8 {[%clk 0:01:11.6]} 27. Qh6+ {[%clk 0:00:19.8]}
27... Ke8 {[%clk 0:01:07.5]} 28. h4 {[%clk 0:00:19.3]} 28... Nc4 {[%clk
0:01:06.4]} 29. Bxc4 {[%clk 0:00:18.7]} 29... Rb1+ {[%clk 0:01:04.6]} 30. Bf1
{[%clk 0:00:18.1]} 30... Qc4 {[%clk 0:01:03.5]} 31. Rxe6+ {[%clk 0:00:11.3]}
31... fxe6 {[%clk 0:00:59.3]} 32. Qh8+ {[%clk 0:00:11.4]} 32... Kd7 {[%clk
0:00:55.8]} 33. Qh7+ {[%clk 0:00:11.7]} 33... Kd6 {[%clk 0:00:56.3]} 34. Qxb1
{[%clk 0:00:12]} 34... Qxc3 {[%clk 0:00:57]} 35. Bxa6 {[%clk 0:00:08]} 35... Qd4
{[%clk 0:00:54]} 36. g3 {[%clk 0:00:06.3]} 36... Qg4 {[%clk 0:00:54.1]} 37. Bf1
{[%clk 0:00:06.1]} 37... Qf3 {[%clk 0:00:54.5]} 38. Qb8+ {[%clk 0:00:06.4]}
38... Kd7 {[%clk 0:00:54.3]} 39. Qf4 {[%clk 0:00:06.7]} 39... Qa3 {[%clk
0:00:53.4]} 40. h5 {[%clk 0:00:06.7]} 40... Qxa2 {[%clk 0:00:54.3]} 41. h6
{[%clk 0:00:06.9]} 41... Qb1 {[%clk 0:00:55]} 42. Qf7+ {[%clk 0:00:07]} 42...
Kd6 {[%clk 0:00:53.7]} 43. h7 {[%clk 0:00:07.4]} 43... d4 {[%clk 0:00:54.5]} 44.
Qf8+ {[%clk 0:00:07.6]} 44... Ke5 {[%clk 0:00:54.4]} 45. h8=Q+ {[%clk
0:00:08.5]} 45... Kd5 {[%clk 0:00:54]} 46. Qd8+ {[%clk 0:00:08.5]} 46... Ke4
{[%clk 0:00:54.3]} 47. Qhxd4+ {[%clk 0:00:08.7]} 47... Kf3 {[%clk 0:00:54.5]}
48. Qf4# {[%clk 0:00:08.5]} 1-0

[Event "Late-Titled-Tuesday-Blitz-January-30-2024"]
[Site "Chess.com"]
[Date "2024.01.30"]
[Round "6"]
[White "GaiozNigalidze"]
[Black "valeriocarnicelli"]
[Result "1-0"]
[WhiteElo "2702"]
[BlackElo "2536"]
[TimeControl "180+1"]
[EndTime "15:07:15 PST"]
[Termination "GaiozNigalidze won on time"]

1. d4 {[%clk 0:03:00.9]} 1... e6 {[%clk 0:03:00.5]} 2. c4 {[%clk 0:03:00.1]}
2... Nf6 {[%clk 0:03:01.1]} 3. Nf3 {[%clk 0:03:00.5]} 3... c5 {[%clk 0:03:01.7]}
4. e3 {[%clk 0:02:59.1]} 4... cxd4 {[%clk 0:03:01]} 5. exd4 {[%clk 0:02:59.1]}
5... d5 {[%clk 0:03:01.7]} 6. Nc3 {[%clk 0:02:56]} 6... Be7 {[%clk 0:03:01.2]}
7. cxd5 {[%clk 0:02:52.6]} 7... Nxd5 {[%clk 0:03:01.8]} 8. Bd3 {[%clk
0:02:51.9]} 8... O-O {[%clk 0:03:00.4]} 9. O-O {[%clk 0:02:52]} 9... Nxc3 {[%clk
0:02:59.7]} 10. bxc3 {[%clk 0:02:51.7]} 10... Nc6 {[%clk 0:02:58.8]} 11. Qe2
{[%clk 0:02:50.1]} 11... Bf6 {[%clk 0:02:52.6]} 12. Qe4 {[%clk 0:02:48.5]} 12...
g6 {[%clk 0:02:51.6]} 13. Ba3 {[%clk 0:02:44.6]} 13... Re8 {[%clk 0:02:51.1]}
14. Rfe1 {[%clk 0:02:44.5]} 14... Qa5 {[%clk 0:02:32.6]} 15. Bc1 {[%clk
0:02:35.6]} 15... Bd7 {[%clk 0:02:31.4]} 16. Bd2 {[%clk 0:02:30.3]} 16... Qd5
{[%clk 0:02:10.4]} 17. Qf4 {[%clk 0:02:22.3]} 17... Bg7 {[%clk 0:02:02.7]} 18.
c4 {[%clk 0:02:02]} 18... Qh5 {[%clk 0:01:58.4]} 19. g4 {[%clk 0:01:58.1]} 19...
Qh3 {[%clk 0:01:32.9]} 20. Bf1 {[%clk 0:01:19.7]} 20... e5 {[%clk 0:01:30.6]}
21. Nxe5 {[%clk 0:00:41.8]} 21... Bxe5 {[%clk 0:01:29.9]} 22. Rxe5 {[%clk
0:00:22.9]} 22... Qxg4+ {[%clk 0:01:22.7]} 23. Qxg4 {[%clk 0:00:22.6]} 23...
Bxg4 {[%clk 0:01:23.6]} 24. Rxe8+ {[%clk 0:00:22.6]} 24... Rxe8 {[%clk
0:01:24.5]} 25. Be3 {[%clk 0:00:20.5]} 25... Bf3 {[%clk 0:01:13.8]} 26. d5
{[%clk 0:00:17.9]} 26... Re4 {[%clk 0:00:56.6]} 27. h3 {[%clk 0:00:15.6]} 27...
Ne5 {[%clk 0:00:56.4]} 28. d6 {[%clk 0:00:13.4]} 28... Nc6 {[%clk 0:00:52.5]}
29. Rb1 {[%clk 0:00:11.8]} 29... b6 {[%clk 0:00:49.2]} 30. c5 {[%clk 0:00:12.1]}
30... bxc5 {[%clk 0:00:21.5]} 31. d7 {[%clk 0:00:12.5]} 31... Kg7 {[%clk
0:00:13.4]} 32. Rb8 {[%clk 0:00:12.2]} 32... Ra4 {[%clk 0:00:06.8]} 33. Rc8
{[%clk 0:00:10.1]} 1-0

[Event "Late-Titled-Tuesday-Blitz-January-30-2024"]
[Site "Chess.com"]
[Date "2024.01.30"]
[Round "6"]
[White "dzilleruelo"]
[Black "winniethepooh04"]
[Result "0-1"]
[WhiteElo "2320"]
[BlackElo "2530"]
[TimeControl "180+1"]
[EndTime "15:07:15 PST"]
[Termination "winniethepooh04 won by resignation"]

1. e4 {[%clk 0:02:31]} 1... e6 {[%clk 0:03:00.9]} 2. Qe2 {[%clk 0:02:30.1]} 2...
Nf6 {[%clk 0:03:00.1]} 3. Nf3 {[%clk 0:02:29.1]} 3... d5 {[%clk 0:03:00.5]} 4.
exd5 {[%clk 0:02:29.3]} 4... Nxd5 {[%clk 0:02:59.7]} 5. d4 {[%clk 0:02:29.3]}
5... Be7 {[%clk 0:02:59.2]} 6. g3 {[%clk 0:02:27.3]} 6... b6 {[%clk 0:02:59.5]}
7. Bg2 {[%clk 0:02:27.5]} 7... Bb7 {[%clk 0:03:00.1]} 8. O-O {[%clk 0:02:28]}
8... O-O {[%clk 0:02:53.1]} 9. Ne5 {[%clk 0:02:28]} 9... c6 {[%clk 0:02:46.2]}
10. Rd1 {[%clk 0:02:24.3]} 10... Qc8 {[%clk 0:02:38.7]} 11. c4 {[%clk
0:02:20.9]} 11... Nf6 {[%clk 0:02:39.2]} 12. Nc3 {[%clk 0:02:20.5]} 12... Nbd7
{[%clk 0:02:38.9]} 13. Be3 {[%clk 0:02:14.4]} 13... Rd8 {[%clk 0:02:37.3]} 14.
Rac1 {[%clk 0:02:13.2]} 14... Qc7 {[%clk 0:02:33.9]} 15. Nd3 {[%clk 0:02:08.9]}
15... Rac8 {[%clk 0:02:28.9]} 16. Bf4 {[%clk 0:02:08.8]} 16... Bd6 {[%clk
0:02:28.6]} 17. Ne5 {[%clk 0:01:38.8]} 17... Qb8 {[%clk 0:02:20.6]} 18. Bh3
{[%clk 0:01:37.8]} 18... Nf8 {[%clk 0:02:14.3]} 19. c5 {[%clk 0:01:29.3]} 19...
Bc7 {[%clk 0:02:10.8]} 20. Ne4 {[%clk 0:01:23.4]} 20... Nxe4 {[%clk 0:02:08.2]}
21. Qxe4 {[%clk 0:01:22.5]} 21... bxc5 {[%clk 0:02:06.1]} 22. dxc5 {[%clk
0:01:21.6]} 22... Rd5 {[%clk 0:02:05.8]} 23. Rxd5 {[%clk 0:01:09.7]} 23... cxd5
{[%clk 0:02:04.5]} 24. Qe3 {[%clk 0:01:08.4]} 24... Ng6 {[%clk 0:02:01.2]} 25.
Nxg6 {[%clk 0:01:02.9]} 25... hxg6 {[%clk 0:01:59.8]} 26. Bxc7 {[%clk
0:00:56.8]} 26... Qxc7 {[%clk 0:02:00.7]} 27. b4 {[%clk 0:00:55.2]} 27... a6
{[%clk 0:02:00.4]} 28. Bg2 {[%clk 0:00:39.8]} 28... Rd8 {[%clk 0:01:57.2]} 29.
Rd1 {[%clk 0:00:38.7]} 29... Bc6 {[%clk 0:01:51.8]} 30. Qb3 {[%clk 0:00:38.1]}
30... Qd7 {[%clk 0:01:51.2]} 31. Rd2 {[%clk 0:00:36.5]} 31... Rb8 {[%clk
0:01:49.5]} 32. a3 {[%clk 0:00:36.2]} 32... Qe7 {[%clk 0:01:47.7]} 33. Qc3
{[%clk 0:00:36]} 33... Qc7 {[%clk 0:01:45.9]} 34. h4 {[%clk 0:00:34.1]} 34...
Qb7 {[%clk 0:01:35.9]} 35. Bf1 {[%clk 0:00:33.6]} 35... a5 {[%clk 0:01:28.5]}
36. b5 {[%clk 0:00:28.8]} 36... Bxb5 {[%clk 0:01:25.8]} 37. Rb2 {[%clk
0:00:28.9]} 37... Qc6 {[%clk 0:01:25.4]} 38. Qb3 {[%clk 0:00:27.9]} 38... Qxc5
{[%clk 0:01:14.7]} 39. Bxb5 {[%clk 0:00:28.1]} 39... a4 {[%clk 0:01:09]} 40.
Qxa4 {[%clk 0:00:20.1]} 40... Qc1+ {[%clk 0:01:08.2]} 41. Kg2 {[%clk 0:00:20.7]}
41... Qxb2 {[%clk 0:01:07.5]} 42. Bf1 {[%clk 0:00:18.1]} 42... Qb3 {[%clk
0:01:02.9]} 43. Qxb3 {[%clk 0:00:16.6]} 43... Rxb3 {[%clk 0:01:02.4]} 44. a4
{[%clk 0:00:17.5]} 44... Ra3 {[%clk 0:01:02]} 45. Bb5 {[%clk 0:00:18.1]} 45...
Kf8 {[%clk 0:01:02.3]} 46. f4 {[%clk 0:00:16.2]} 46... f6 {[%clk 0:01:01.5]} 47.
Kh3 {[%clk 0:00:16.1]} 47... Ke7 {[%clk 0:01:01.4]} 48. Kg4 {[%clk 0:00:16.3]}
48... e5 {[%clk 0:00:59.8]} 49. fxe5 {[%clk 0:00:14.3]} 49... fxe5 {[%clk
0:01:00.7]} 50. Kg5 {[%clk 0:00:15.1]} 50... Kf7 {[%clk 0:01:00.3]} 51. g4
{[%clk 0:00:15.4]} 51... d4 {[%clk 0:00:58]} 52. h5 {[%clk 0:00:12.4]} 52...
gxh5 {[%clk 0:00:57.6]} 53. gxh5 {[%clk 0:00:12.5]} 53... d3 {[%clk 0:00:56.9]}
54. Kf5 {[%clk 0:00:10.6]} 54... d2 {[%clk 0:00:56.4]} 55. Be2 {[%clk
0:00:11.2]} 55... Rxa4 {[%clk 0:00:55.6]} 56. Kxe5 {[%clk 0:00:11.8]} 56... Ra1
{[%clk 0:00:55.5]} 0-1

[Event "Late-Titled-Tuesday-Blitz-January-30-2024"]
[Site "Chess.com"]
[Date "2024.01.30"]
[Round "6"]
[White "picturesquecheck"]
[Black "Siniauski"]
[Result "1-0"]
[WhiteElo "2386"]
[BlackElo "2607"]
[TimeControl "180+1"]
[EndTime "15:07:23 PST"]
[Termination "picturesquecheck won by resignation"]

1. e4 {[%clk 0:03:00.9]} 1... e6 {[%clk 0:02:55.5]} 2. d4 {[%clk 0:03:00.3]}
2... d5 {[%clk 0:02:55.3]} 3. exd5 {[%clk 0:02:58.4]} 3... exd5 {[%clk
0:02:55.3]} 4. Nf3 {[%clk 0:02:59.1]} 4... Nc6 {[%clk 0:02:55.8]} 5. Bd3 {[%clk
0:02:58.3]} 5... Bd6 {[%clk 0:02:56.3]} 6. O-O {[%clk 0:02:57.9]} 6... Nge7
{[%clk 0:02:57]} 7. c3 {[%clk 0:02:58]} 7... Bg4 {[%clk 0:02:57.5]} 8. h3 {[%clk
0:02:56.9]} 8... Bh5 {[%clk 0:02:57.6]} 9. Re1 {[%clk 0:02:56.5]} 9... f6 {[%clk
0:02:56.9]} 10. Nbd2 {[%clk 0:02:56.6]} 10... Qd7 {[%clk 0:02:56.9]} 11. Nf1
{[%clk 0:02:55.9]} 11... O-O-O {[%clk 0:02:56.1]} 12. Ng3 {[%clk 0:02:55.6]}
12... Bg6 {[%clk 0:02:54.1]} 13. b4 {[%clk 0:02:53.1]} 13... Rde8 {[%clk
0:02:48.3]} 14. Bb2 {[%clk 0:02:49.3]} 14... Bxd3 {[%clk 0:02:37.3]} 15. Qxd3
{[%clk 0:02:48.3]} 15... g5 {[%clk 0:02:38.1]} 16. a4 {[%clk 0:02:40.6]} 16...
h5 {[%clk 0:02:37.8]} 17. b5 {[%clk 0:02:18.4]} 17... Na5 {[%clk 0:02:36]} 18.
Ba3 {[%clk 0:02:18.8]} 18... Nc4 {[%clk 0:02:23.5]} 19. Bxd6 {[%clk 0:02:15.9]}
19... Nxd6 {[%clk 0:02:24.4]} 20. h4 {[%clk 0:01:51]} 20... g4 {[%clk
0:02:03.3]} 21. Nd2 {[%clk 0:01:44.5]} 21... Nef5 {[%clk 0:01:52.4]} 22. Nxf5
{[%clk 0:01:43.3]} 22... Nxf5 {[%clk 0:01:52.4]} 23. g3 {[%clk 0:01:42.9]} 23...
Nd6 {[%clk 0:01:49.7]} 24. Kg2 {[%clk 0:01:38.9]} 24... f5 {[%clk 0:01:49.1]}
25. Re5 {[%clk 0:01:31.3]} 25... Ne4 {[%clk 0:01:37.5]} 26. Re1 {[%clk 0:01:25]}
26... Rxe5 {[%clk 0:01:33.5]} 27. dxe5 {[%clk 0:01:24.3]} 27... Qe6 {[%clk
0:01:34.1]} 28. Qd4 {[%clk 0:01:18.1]} 28... Re8 {[%clk 0:01:31]} 29. Nxe4
{[%clk 0:01:14.7]} 29... fxe4 {[%clk 0:01:01.6]} 30. Qxa7 {[%clk 0:01:10.3]}
30... Qxe5 {[%clk 0:00:40.2]} 31. Qa8+ {[%clk 0:01:02.9]} 31... Kd7 {[%clk
0:00:40.5]} 32. Qxb7 {[%clk 0:01:03.7]} 32... Re6 {[%clk 0:00:40.9]} 33. c4
{[%clk 0:00:57.9]} 33... Rd6 {[%clk 0:00:32.3]} 34. cxd5 {[%clk 0:00:57.6]}
34... Qc3 {[%clk 0:00:30.4]} 35. Re3 {[%clk 0:00:53.1]} 35... Qd2 {[%clk
0:00:20.3]} 36. Rxe4 {[%clk 0:00:49.7]} 36... Rf6 {[%clk 0:00:20.4]} 37. Rf4
{[%clk 0:00:44.8]} 37... Rxf4 {[%clk 0:00:17.6]} 38. gxf4 {[%clk 0:00:45.7]}
38... Qxf4 {[%clk 0:00:17.5]} 39. Qc6+ {[%clk 0:00:45.9]} 39... Kd8 {[%clk
0:00:18]} 40. Qc3 {[%clk 0:00:36.6]} 40... Qe4+ {[%clk 0:00:17.1]} 41. Kh2
{[%clk 0:00:32.5]} 41... Qxd5 {[%clk 0:00:17.7]} 42. Qf6+ {[%clk 0:00:32]} 42...
Kc8 {[%clk 0:00:17.4]} 43. Qg5 {[%clk 0:00:31.3]} 43... Qd6+ {[%clk 0:00:17.2]}
44. Kg2 {[%clk 0:00:31.3]} 44... Qf8 {[%clk 0:00:13.6]} 45. Qxh5 {[%clk
0:00:28.2]} 45... Qf3+ {[%clk 0:00:13.5]} 46. Kg1 {[%clk 0:00:28.3]} 46... Kb8
{[%clk 0:00:13]} 47. Qe8+ {[%clk 0:00:26.3]} 47... Ka7 {[%clk 0:00:13.4]} 48.
Qe3+ {[%clk 0:00:25.8]} 1-0

[Event "Late-Titled-Tuesday-Blitz-January-30-2024"]
[Site "Chess.com"]
[Date "2024.01.30"]
[Round "6"]
[White "BebeBonito2022"]
[Black "Doudou2015"]
[Result "1-0"]
[WhiteElo "2328"]
[BlackElo "2194"]
[TimeControl "180+1"]
[EndTime "15:07:24 PST"]
[Termination "BebeBonito2022 won by resignation"]

1. d4 {[%clk 0:03:00.9]} 1... d5 {[%clk 0:02:57.4]} 2. c4 {[%clk 0:03:01.1]}
2... e6 {[%clk 0:02:57.6]} 3. Nc3 {[%clk 0:03:01.3]} 3... c6 {[%clk 0:02:56.4]}
4. e3 {[%clk 0:03:00.1]} 4... Nf6 {[%clk 0:02:55.6]} 5. Nf3 {[%clk 0:03:00.1]}
5... Bd6 {[%clk 0:02:53.2]} 6. b3 {[%clk 0:02:58.5]} 6... O-O {[%clk 0:02:51.9]}
7. Bb2 {[%clk 0:02:58.8]} 7... Nbd7 {[%clk 0:02:50.8]} 8. Qc2 {[%clk 0:02:55]}
8... Re8 {[%clk 0:02:50.5]} 9. Be2 {[%clk 0:02:53.1]} 9... Nf8 {[%clk
0:02:49.4]} 10. O-O {[%clk 0:02:52.9]} 10... Ng6 {[%clk 0:02:39.1]} 11. Rad1
{[%clk 0:02:48.7]} 11... Qc7 {[%clk 0:02:33.7]} 12. Rfe1 {[%clk 0:02:42.6]}
12... a6 {[%clk 0:02:30.1]} 13. Bf1 {[%clk 0:02:28.2]} 13... Bd7 {[%clk
0:02:27.7]} 14. e4 {[%clk 0:02:27]} 14... dxe4 {[%clk 0:02:27]} 15. Nxe4 {[%clk
0:02:27.2]} 15... Nxe4 {[%clk 0:02:26]} 16. Qxe4 {[%clk 0:02:26.8]} 16... Bb4
{[%clk 0:01:39.4]} 17. Re3 {[%clk 0:02:15]} 17... Qd6 {[%clk 0:01:34.8]} 18. a3
{[%clk 0:01:44.8]} 18... Ba5 {[%clk 0:01:22.5]} 19. b4 {[%clk 0:01:39.1]} 19...
Bc7 {[%clk 0:01:22.3]} 20. g3 {[%clk 0:01:31.6]} 20... b6 {[%clk 0:01:11.5]} 21.
h4 {[%clk 0:01:14.4]} 21... c5 {[%clk 0:01:00.7]} 22. d5 {[%clk 0:00:52.4]}
22... exd5 {[%clk 0:00:51.8]} 23. Qxd5 {[%clk 0:00:52.1]} 23... Qxd5 {[%clk
0:00:48.2]} 24. cxd5 {[%clk 0:00:42.3]} 24... Rxe3 {[%clk 0:00:44.9]} 25. fxe3
{[%clk 0:00:43.1]} 25... Bxg3 {[%clk 0:00:44]} 26. bxc5 {[%clk 0:00:41.6]} 26...
bxc5 {[%clk 0:00:43.1]} 27. h5 {[%clk 0:00:36.3]} 27... Nh4 {[%clk 0:00:32.7]}
28. Be2 {[%clk 0:00:32.6]} 28... Nf5 {[%clk 0:00:29.2]} 29. e4 {[%clk
0:00:27.7]} 29... Ne3 {[%clk 0:00:23.1]} 30. Rc1 {[%clk 0:00:28]} 30... Rc8
{[%clk 0:00:20.4]} 31. Bxa6 {[%clk 0:00:28.2]} 31... Rb8 {[%clk 0:00:18.2]} 32.
Be5 {[%clk 0:00:25.8]} 32... Bxe5 {[%clk 0:00:16.9]} 33. Nxe5 {[%clk 0:00:26.1]}
33... Bg4 {[%clk 0:00:13.1]} 34. Rxc5 {[%clk 0:00:23]} 34... Bxh5 {[%clk
0:00:12.3]} 35. d6 {[%clk 0:00:20.7]} 35... f6 {[%clk 0:00:11.7]} 36. d7 {[%clk
0:00:19.4]} 36... Rb1+ {[%clk 0:00:09.4]} 37. Kf2 {[%clk 0:00:19]} 37... Nd1+
{[%clk 0:00:08.5]} 38. Kg3 {[%clk 0:00:16.1]} 38... Rb2 {[%clk 0:00:07.5]} 39.
d8=Q+ {[%clk 0:00:15]} 1-0

[Event "Late-Titled-Tuesday-Blitz-January-30-2024"]
[Site "Chess.com"]
[Date "2024.01.30"]
[Round "6"]
[White "azikom"]
[Black "SHIVACalypso"]
[Result "0-1"]
[WhiteElo "2719"]
[BlackElo "2495"]
[TimeControl "180+1"]
[EndTime "15:07:25 PST"]
[Termination "SHIVACalypso won on time"]

1. d4 {[%clk 0:02:59.9]} 1... Nf6 {[%clk 0:02:59.1]} 2. c4 {[%clk 0:02:59.7]}
2... e6 {[%clk 0:02:58.2]} 3. Nc3 {[%clk 0:02:59.1]} 3... d5 {[%clk 0:02:57.2]}
4. Nf3 {[%clk 0:02:57.5]} 4... Ne4 {[%clk 0:02:55.9]} 5. Qc2 {[%clk 0:02:52.7]}
5... Nxc3 {[%clk 0:02:52.2]} 6. bxc3 {[%clk 0:02:52.3]} 6... dxc4 {[%clk
0:02:51.2]} 7. e4 {[%clk 0:02:51]} 7... b5 {[%clk 0:02:50]} 8. a4 {[%clk
0:02:51.4]} 8... c6 {[%clk 0:02:50.3]} 9. h4 {[%clk 0:02:48.2]} 9... Bb7 {[%clk
0:02:49.1]} 10. e5 {[%clk 0:02:46.3]} 10... h6 {[%clk 0:02:42]} 11. Qb1 {[%clk
0:02:38.3]} 11... Qc8 {[%clk 0:02:41.3]} 12. Rh3 {[%clk 0:02:34.9]} 12... a6
{[%clk 0:02:38.4]} 13. Rg3 {[%clk 0:02:15.9]} 13... Nd7 {[%clk 0:02:35.2]} 14.
Nd2 {[%clk 0:02:16.1]} 14... Rb8 {[%clk 0:02:32.4]} 15. h5 {[%clk 0:02:03.6]}
15... c5 {[%clk 0:02:30]} 16. axb5 {[%clk 0:02:02.5]} 16... axb5 {[%clk
0:02:29.1]} 17. Ne4 {[%clk 0:01:42.7]} 17... cxd4 {[%clk 0:02:23.6]} 18. cxd4
{[%clk 0:01:41.7]} 18... b4 {[%clk 0:02:22]} 19. Nd6+ {[%clk 0:01:30.9]} 19...
Bxd6 {[%clk 0:02:21.7]} 20. exd6 {[%clk 0:01:31.8]} 20... Bd5 {[%clk 0:02:09]}
21. Rxg7 {[%clk 0:01:26.1]} 21... c3 {[%clk 0:02:09]} 22. Rxf7 {[%clk
0:01:06.5]} 22... c2 {[%clk 0:01:58.7]} 23. Re7+ {[%clk 0:01:05.8]} 23... Kd8
{[%clk 0:01:58.3]} 24. Qb2 {[%clk 0:01:06.2]} 24... Re8 {[%clk 0:01:36.9]} 25.
Bxh6 {[%clk 0:00:38.6]} 25... Rxe7 {[%clk 0:01:03.1]} 26. dxe7+ {[%clk
0:00:38.2]} 26... Kxe7 {[%clk 0:01:04]} 27. Bd3 {[%clk 0:00:34.8]} 27... b3
{[%clk 0:00:37.7]} 28. Qa3+ {[%clk 0:00:29.3]} 28... Nc5 {[%clk 0:00:22.7]} 29.
dxc5 {[%clk 0:00:24.5]} 29... b2 {[%clk 0:00:18.6]} 30. c6+ {[%clk 0:00:24]}
30... Kf6 {[%clk 0:00:17.9]} 31. Rc1 {[%clk 0:00:21.9]} 31... b1=Q {[%clk
0:00:15.8]} 32. Qc3+ {[%clk 0:00:20.2]} 32... e5 {[%clk 0:00:15.5]} 33. Bg5+
{[%clk 0:00:16.4]} 33... Ke6 {[%clk 0:00:12.1]} 34. Bxc2 {[%clk 0:00:12]} 34...
Qb4 {[%clk 0:00:10.4]} 0-1

[Event "Late-Titled-Tuesday-Blitz-January-30-2024"]
[Site "Chess.com"]
[Date "2024.01.30"]
[Round "6"]
[White "icychess54"]
[Black "Gryffindorac8"]
[Result "1-0"]
[WhiteElo "2246"]
[BlackElo "2381"]
[TimeControl "180+1"]
[EndTime "15:07:25 PST"]
[Termination "icychess54 won by checkmate"]

1. c4 {[%clk 0:03:00.9]} 1... Nf6 {[%clk 0:02:58.7]} 2. Nc3 {[%clk 0:03:01.4]}
2... c5 {[%clk 0:02:57.6]} 3. Nf3 {[%clk 0:03:01.8]} 3... b6 {[%clk 0:02:54.6]}
4. d4 {[%clk 0:03:02.1]} 4... cxd4 {[%clk 0:02:54.4]} 5. Nxd4 {[%clk 0:03:03]}
5... Bb7 {[%clk 0:02:54.4]} 6. e3 {[%clk 0:03:02.4]} 6... e6 {[%clk 0:02:53.7]}
7. Ndb5 {[%clk 0:03:01.6]} 7... d6 {[%clk 0:02:44.5]} 8. b3 {[%clk 0:03:00.8]}
8... a6 {[%clk 0:02:42.1]} 9. Nd4 {[%clk 0:02:58.3]} 9... Be7 {[%clk 0:02:41.9]}
10. Bb2 {[%clk 0:02:58.9]} 10... O-O {[%clk 0:02:41.5]} 11. Be2 {[%clk
0:02:59.6]} 11... Nbd7 {[%clk 0:02:40.2]} 12. O-O {[%clk 0:02:59.8]} 12... Qc7
{[%clk 0:02:39.7]} 13. f4 {[%clk 0:02:58.4]} 13... d5 {[%clk 0:02:23.8]} 14. Rc1
{[%clk 0:02:52.8]} 14... dxc4 {[%clk 0:01:58.8]} 15. Bxc4 {[%clk 0:02:53.7]}
15... Qd8 {[%clk 0:01:54.9]} 16. Qe2 {[%clk 0:02:39.9]} 16... b5 {[%clk
0:01:42.9]} 17. Bd3 {[%clk 0:02:37.3]} 17... Nc5 {[%clk 0:01:34.2]} 18. Bb1
{[%clk 0:02:36.1]} 18... Nce4 {[%clk 0:01:25.3]} 19. Nxe4 {[%clk 0:02:35.3]}
19... Nxe4 {[%clk 0:01:14.2]} 20. Nc6 {[%clk 0:02:30.4]} 20... Bxc6 {[%clk
0:01:05.6]} 21. Rxc6 {[%clk 0:02:31.3]} 21... Qd5 {[%clk 0:00:54.4]} 22. Rc7
{[%clk 0:01:54.9]} 22... Bd6 {[%clk 0:00:31.6]} 23. Rd1 {[%clk 0:01:36.3]} 23...
Bxc7 {[%clk 0:00:30.6]} 24. Rxd5 {[%clk 0:01:33]} 24... exd5 {[%clk 0:00:30.7]}
25. Qg4 {[%clk 0:01:13.1]} 25... f6 {[%clk 0:00:18.4]} 26. Qe6+ {[%clk
0:01:09.1]} 26... Kh8 {[%clk 0:00:18.7]} 27. Qxd5 {[%clk 0:01:08.9]} 27... Nd6
{[%clk 0:00:19]} 28. Qh5 {[%clk 0:01:07.1]} 28... h6 {[%clk 0:00:17]} 29. Qg6
{[%clk 0:01:05.8]} 29... Kg8 {[%clk 0:00:17.3]} 30. Qh7+ {[%clk 0:01:04.3]}
30... Kf7 {[%clk 0:00:17.4]} 31. Bg6+ {[%clk 0:01:04.7]} 31... Ke6 {[%clk
0:00:17.2]} 32. Qxg7 {[%clk 0:01:04.7]} 32... Bb6 {[%clk 0:00:17.4]} 33. f5+
{[%clk 0:01:01.1]} 33... Kd5 {[%clk 0:00:15]} 34. Bf7+ {[%clk 0:00:42.4]} 34...
Rxf7 {[%clk 0:00:14.3]} 35. Qg3 {[%clk 0:00:39.4]} 35... Rc8 {[%clk 0:00:13.8]}
36. h3 {[%clk 0:00:27.5]} 36... Kc6 {[%clk 0:00:10.1]} 37. Qg6 {[%clk 0:00:27]}
37... Rcf8 {[%clk 0:00:08.4]} 38. Qxh6 {[%clk 0:00:25.7]} 38... Kd7 {[%clk
0:00:07.6]} 39. Qf4 {[%clk 0:00:24.4]} 39... Re8 {[%clk 0:00:06.9]} 40. Bd4
{[%clk 0:00:24]} 40... Bxd4 {[%clk 0:00:06.6]} 41. Qxd4 {[%clk 0:00:24.9]} 41...
Re4 {[%clk 0:00:05.9]} 42. Qa7+ {[%clk 0:00:24.3]} 42... Kc6 {[%clk 0:00:05.9]}
43. Qxa6+ {[%clk 0:00:24.5]} 43... Kd5 {[%clk 0:00:06]} 44. Qa8+ {[%clk
0:00:23.5]} 44... Ke5 {[%clk 0:00:06.4]} 45. Qc6 {[%clk 0:00:21.5]} 45... Re7
{[%clk 0:00:05.6]} 46. Qc5# {[%clk 0:00:21]} 1-0